Cogmind - Beta 12 X4 @@@ ROGUE MODE // 2023.01.04 @ 21:35:58 Player: Lunatic Blue Result: Destroyed by as-19000 with Assembled Blade Performance ------------- Evolutions (0) 0 Regions Visited (2) 400 Robots Destroyed (5) 25 Value Destroyed (39) 39 Prototype IDs (0) 0 Alien Tech Used (0) 0 Bonus (0) 0 TOTAL SCORE: 464 Bonus ------- None Cogmind --------- Core Integrity 0/250 Matter 300/300 Energy 100/100 System Corruption 3% Temperature Cool (23) Movement Treading (240) Ox1 Location -10/Mines Parts ------- > --- POWER (1) -------- (None) > --- PROPULSION (2) --- Light Treads > --- UTILITY (2) ------ High-capacity Storage Unit > --- WEAPON (2) ------- (None) > --- INVENTORY (20) --- Light Ion Engine Compact Wheel Small Storage Unit Medium Storage Unit Signal Interpreter Peak State ------------ > --- POWER ------------ Ion Engine > --- PROPULSION ------- Light Treads Wheel > --- UTILITY ---------- High-capacity Storage Unit Improved Terrain Scanner > --- WEAPON ----------- Medium Laser Medium Laser > --- INVENTORY -------- Light Ion Engine Light Treads Compact Wheel Small Storage Unit Medium Storage Unit Signal Interpreter Assault Rifle Mining Laser [Rating: 9] Favorites ----------- Power Ion Engine Engine Ion Engine Propulsion Wheel Treads Light Treads Wheel Wheel Utility Seismic Detector Device Seismic Detector Storage Small Storage Unit Weapon Medium Laser Energy Gun Medium Laser Ballistic Gun Assault Rifle Special Weapon Mining Laser Build | -11 -10 -10 ------- Run | Scr Mat Min Slots Evolved . | . . . Power . | . . . Propulsion . | . . . Utility . | . . . Weapon . | . . . Parts Attached 13 | 7 1 5 Power 1 | 1 . . Engine 1 | 1 . . Core . | . . . Reactor . | . . . Propulsion 3 | 2 . 1 Treads 2 | 1 . 1 Leg . | . . . Wheel 1 | 1 . . Hover . | . . . Flight . | . . . Utility 4 | 2 1 1 Device 2 | 1 . 1 Storage 2 | 1 1 . Processor . | . . . Hackware . | . . . Protection . | . . . Artifact . | . . . Weapon 5 | 2 . 3 Energy Gun 3 | 2 . 1 Energy Cannon . | . . . Ballistic Gun 1 | . . 1 Ballistic Cannon . | . . . Launcher . | . . . Special Weapon 1 | . . 1 Impact Weapon . | . . . Slashing Weapon . | . . . Piercing Weapon . | . . . Special Melee Weapon . | . . . Unidentified Prototypes . | . . . Parts Lost 9 | . . 9 Power 1 | . . 1 Propulsion 2 | . . 2 Utility 2 | . . 2 Weapon 4 | . . 4 Highest Loss Streak 7 | . . 7 To Critical Strikes . | . . . Average Slot Usage (%) 94 | . 100 85 Engine 13 | . 14 11 Treads 13 | . 14 12 Wheel 13 | . 14 12 Device 13 | . 14 11 Storage 14 | . 14 14 Energy Gun 23 | . 28 15 Ballistic Gun 2 | . . 5 Naked Turns . | . . . Heaviest Build 50 | 15 50 50 Greatest Support 10 | 10 10 10 Greatest Overweight (x) 4 | 1 4 4 Average Overweight (x) 1 | . 2 3 Largest Inventory Capacity 20 | 8 20 20 Average Capacity 13 | 7 13 20 Most Carried 9 | 5 9 9 Average Carried 5 | 3 5 7 Final Capacity 20 | 8 20 20 Final Carried 9 | 5 9 5 Class Distribution -------------------- 100% | Mutant Dominant Class ---------------- Mutant | -10/Materials Mutant | -10/Mines Resources | -11 -10 -10 ----------- Run | Scr Mat Min Matter Collected 318 | 270 10 38 Remotely . | . . . Salvage Created 177 | 66 56 55 Parts 13 | 9 4 . Haulers Intercepted 1 | . 1 . Recyclers Shooed . | . . . Parts Field Recycled . | . . . Retrieved Matter . | . . . Parts Self-Destructed . | . . . Prevented . | . . . Kills | -11 -10 -10 ------- Run | Scr Mat Min Combat Hostiles Destroyed 5 | . . 5 Guns 4 | . . 4 Cannons 1 | . . 1 Classes Destroyed 4 | 1 2 1 Tunneler 3 | 3 . . Hauler 1 | . 1 . Watcher 1 | . 1 . Assembled 5 | . . 5 Best Kill Streak 5 | 3 1 5 Combat Bots Only 5 | . . 5 Max Kills in Single Turn 1 | 1 1 1 Gunslinging . | . . . Exploded . | . . . Melee . | . . . Uniques/NPCs Destroyed . | . . . Combat | -11 -10 -10 -------- Run | Scr Mat Min Damage Taken 1076 | . 45 1031 Core 276 | . 12 264 Absorbed by Shields . | . . . Core Remaining (%) 100 | 100 . . Volleys Fired 32 | 5 7 20 Largest 2 | 2 2 2 Hottest 120 | 100 100 120 Shots Fired 60 | 10 14 36 Gun 56 | 10 14 32 Cannon . | . . . Launcher . | . . . Special 4 | . . 4 Kinetic 10 | . . 10 Thermal 50 | 10 14 26 Explosive . | . . . Electromagnetic . | . . . Robot Hit Streak 5 | 3 2 5 Robot Miss Streak 2 | 1 2 2 Penetration Max . | . . . Secondary Targets 1 | . . 1 Max Gunslinging Chain 1 | . . 1 Shots Hit Robots 34 | 6 6 22 Core Hits 17 | 3 3 11 Critical Kills . | . . . Critical Parts Destroyed . | . . . Critical Strikes 2 | . . 2 Burn 2 | . . 2 Melee Attacks . | . . . Impact . | . . . Slashing . | . . . Piercing . | . . . Sneak Attacks . | . . . Combat Hostiles . | . . . Follow-up Attacks . | . . . Damage Inflicted 482 | 74 89 319 Guns 426 | 74 89 263 Cannons . | . . . Explosions . | . . . Melee . | . . . Ramming 8 | . . 8 Kinetic 62 | . . 62 Thermal 412 | 74 89 249 Explosive . | . . . Electromagnetic . | . . . Impact . | . . . Slashing . | . . . Piercing . | . . . Highest Corruption 3 | . . 3 Average Corruption 3 | . . 3 Corruption Purged . | . . . Corruption Blocked . | . . . Overload Shots . | . . . Overflow Damage 8 | . . 8 Projectiles 8 | . . 8 Explosions . | . . . Melee . | . . . Knockbacks . | . . . Impact . | . . . Kinetic . | . . . Secondary . | . . . Self-Inflicted Damage . | . . . Shots . | . . . Rammed 2 | . . 2 Targets Rammed 2 | . . 2 Kicked . | . . . Crushed . | . . . Highest Temperature 318 | 117 195 318 Average Temperature 157 | 48 81 218 Received Heat Transfer 24 | . 24 . Effects 5 | . . 5 Interference 4 | . . 4 Damage (minor) 1 | . . 1 Siege Activations . | . . . Robots Corrupted . | . . . Combat Hostiles . | . . . Parts Fried . | . . . Impact Corruptions . | . . . Robots Melted . | . . . Combat Hostiles . | . . . Parts Melted 1 | . 1 . Heat Transferred 1321 | 222 259 840 Parts Sabotaged . | . . . Parts Stolen . | . . . Parts Stripped . | . . . Power Chain Reactions . | . . . Missiles Intercepted . | . . . Alert | -11 -10 -10 ------- Run | Scr Mat Min Peak Influence 98 | 15 98 67 Initial 37 | . 9 37 Average 42 | 5 65 42 Maximum Alert Level . | . . . Low Security (%) 100 | 100 100 100 Level 1 . | . . . Level 2 . | . . . Level 3 . | . . . Level 4 . | . . . Level 5 . | . . . High Security . | . . . Max Security . | . . . Squads Dispatched 2 | . 2 . Investigation 1 | . 1 . Extermination . | . . . Reinforcement 1 | . 1 . Assault . | . . . Garrison . | . . . Intercept . | . . . Searches Triggered . | . . . Construction Impeded . | . . . Haulers Reinforced . | . . . Active Scanning Responses . | . . . Cargo Convoy Interrupts . | . . . Stealth | -11 -10 -10 --------- Run | Scr Mat Min Distress Signals 1 | . 1 . Communications Jammed . | . . . Distress Signals . | . . . Times Spotted 16 | . 6 10 Peak Tracking Total 11 | . 3 11 Tactical Retreats 1 | . . 1 Traps | -11 -10 -10 ------- Run | Scr Mat Min Traps Triggered . | . . . Indirectly . | . . . Trap Hack Attempts . | . . . Triggered . | . . . Disarmed . | . . . Reprogrammed . | . . . Reused . | . . . Traps Extracted . | . . . Installed . | . . . Triggered . | . . . Machines | -11 -10 -10 ---------- Run | Scr Mat Min Machines Disabled . | . . . Max in Single Turn . | . . . Machines Sabotaged . | . . . Overloaded Fab Kills . | . . . Hacking | -11 -10 -10 --------- Run | Scr Mat Min Machines Accessed 1 | . 1 . Terminals . | . . . Fabricators . | . . . Repair Stations . | . . . Recycling Units 1 | . 1 . Scanalyzers . | . . . Garrison Access . | . . . Total Hacks 2 | . 2 . Successful 1 | . 1 . Failed 1 | . 1 . Catastrophic . | . . . Database Lockouts . | . . . Manual 2 | . 2 . Terminals . | . . . Fabricators . | . . . Repair Stations . | . . . Recycling Units 2 | . 2 . Scanalyzers . | . . . Garrison Access . | . . . Terminal Hacks . | . . . Fabricator Hacks . | . . . Repair Station Hacks . | . . . Recycling Unit Hacks . | . . . Scanalyzer . | . . . Garrison Access Hacks . | . . . Unauthorized Hacks 1 | . 1 . Terminals . | . . . Fabricators . | . . . Repair Stations . | . . . Recycling Units 1 | . 1 . Tunnel 1 | . 1 . Scanalyzers . | . . . Garrison Access . | . . . Data Cores Recovered . | . . . Used . | . . . Hacking Detections 1 | . 1 . Full Trace Events . | . . . Feedback Events . | . . . Feedback Blocked . | . . . Robot Schematics Acquired . | . . . Robots Built . | . . . Authchips . | . . . Time . | . . . Total Robot Build Rating . | . . . Part Schematics Acquired . | . . . Parts Built . | . . . Authchips . | . . . Time . | . . . Total Part Build Rating . | . . . Parts Repaired . | . . . Time . | . . . Parts Recycled . | . . . Recycled Matter . | . . . Retrieved Matter . | . . . Retrieved Components . | . . . Parts Scanalyzed . | . . . Part Schematics Acquired . | . . . Parts Damaged . | . . . Bothacking | -11 -10 -10 ------------ Run | Scr Mat Min Used RIF Installer . | . . . Robots Hacked . | . . . Non-combat . | . . . Combat . | . . . Robot Hacks Applied . | . . . Relay Couplers Released . | . . . Fabnet Peak Effective % . | . . . Robots Rewired . | . . . Allies Hacked . | . . . Hacks Repelled . | . . . Allies | -11 -10 -10 -------- Run | Scr Mat Min Total Allies . | . . . Largest Group . | . . . Highest-Rated Group . | . . . Highest-Rated Ally . | . . . Total Orders . | . . . Ally Attacks . | . . . Total Damage . | . . . Kills . | . . . Allies Corrupted . | . . . Allies Melted . | . . . Intel | -11 -10 -10 ------- Run | Scr Mat Min Robot Analysis Total . | . . . Derelict Logs Recovered . | . . . Drone Launches . | . . . Drone Recoveries . | . . . Exploration | -11 -10 -10 ------------- Run | Scr Mat Min Turns Passed 389 | 110 177 102 Spaces Moved 228 | 88 120 20 Core 2 | 2 . . Treads . | . . . Legs . | . . . Wheels 226 | 86 120 20 Hover . | . . . Flight . | . . . Fastest Speed 50 | 50 95 125 Average Speed 104 | 90 110 137 Slowest Speed 140 | 95 140 140 Overloaded Moves . | . . . Propulsion Burnouts . | . . . Robots Hopped . | . . . Cave-ins Triggered . | . . . Exploration Rate (%) 13 | 4 28 7 Regions Visited 2 Branch Regions 1 Pre-discovered Areas 1 | . 1 . Known Exits Taken . | . . . Unknown Exits Taken 2 | 1 1 . Scrap Searched . | . . . Spaces Dug . | . . . Terrain Destroyed 2 | . . 2 Melee . | . . . Projectile 2 | . . 2 AOE . | . . . Terrain Rammed . | . . . Walls Destroyed . | . . . Machines Disabled . | . . . Actions | -11 -10 -10 --------- Run | Scr Mat Min Total 301 | 104 150 47 Wait 20 | . 20 . Move 226 | 87 119 20 Hop . | . . . Pick Up 8 | 5 3 . Fast Attach 7 | 7 . . Attach 4 | . . 4 Detach . | . . . Swap 2 | . 1 1 Drop . | . . . Fire 32 | 5 7 20 Melee . | . . . Ram . | . . . Kick . | . . . Crush 2 | . . 2 Escape Stasis . | . . . Rewire . | . . . Trap . | . . . Miscellaneous . | . . . Route ------- -11/Scrapyard -10/Materials -10/Mines History --------- Turn | Location | Event 11 | -11/Scrapyard | Discovered new exit (range 15) 111 | -11/Scrapyard | Entered Materials 208 | -10/Materials | Discovered new exit (range 9) 288 | -10/Materials | Entered Mines 289 | -10/Mines | Assembled infested the area 311 | -10/Mines | Build established: Mutant 381 | -10/Mines | Core integrity fell below 50% 388 | -10/Mines | Core integrity fell below 20% 390 | -10/Mines | Destroyed by as-19000 with Assembled Blade Last Messages --------------- 00349_ Med. Laser temporarily disabled. 00362_ Destroyed Asb. Hover Unit. 00362_ as-53589 destroyed. 00368_ Mining Laser destroyed. 00371_ Assault Rifle destroyed. 00372_ Overheating: Ion Engine damaged (-5). 00373_ Ion Engine destroyed. 00373_ as-68327 destroyed. 00377_ Lgt. Treads destroyed. 00377_ Imp. Terrain Scanner destroyed. 00377_ as-60560 suffers critical hit (Burn). 00378_ Overheating: System interference. 00378_ Med. Laser temporarily disabled. 00378_ Med. Laser destroyed. 00379_ Acquired 12 matter. 00383_ Acquired 20 matter. 00383_ Wheel destroyed. 00385_ Slammed into as-83792. 00386_ Acquired 6 matter. 00388_ Slammed into as-83792. Map ----- +----------------------------------------------------+ | | | | | | | | | | | | | | | | | | | | | | | | | ??????????????????????????????????????????????? | | ??????????????????????????????????????????????? | | ??????????????????????????????????????????????? | | ??????????????????????????????????????????????? | | ??????????????????????????????????????????????? | | ??????????????????????????#?#????????#????????? | | ????????????????#?????????????????????????????? | | ??????????????????????????????????????????????? | | ?????????????????????????????########?????????? | | ?????????????????????????????# #?????????? | | ?????????????### ???????????# #?????????? | | ????????????## #######??# !! #?????????? | | ????????????# a%#?## ! #?????????? | | ???????????# < a@### !! ###???????? | | ????????? #######aa# #????????? | | ???????????????????## ##; a ## #????????? | | ???????????????????# ##?# ##????????? | | ???????????????????## ## ###??##?????????? | | ????????????????????### #######??????????????? | | ??????????????????????####??????????????#?????? | | ??????????????????????????#???????????????????? | | ??????????????????????????????????????????????? | | ??????????????????????????????????????????????? | | ??????????????????????????????????????????????? | | ??????????????????????#???????????????????????? | | ??????????????????????????????????????????????? | | ???????????????#??? ?????#??????????#?????????? | | ??????????????????????????????????????????????? | | ??????????????????????????????????????????????? | | ??????????????????????????????????????????????? | | ??????????????????????????????????????????????? | | ??????????????????????????????????????????????? | | ??????????????????????????????????????????????? | | ??????????????????????????????????????????????? | | ??????????????????????????????????????????????? | | ??????????????????????????????????????????????? | | ??????????????????????????????????????????????? | | ??????????????????????????????????????????????? | +----------------------------------------------------+ Best States ------------- Heat Dissipation 25 Energy Generation 10 Energy Capacity 250 Matter Stores 300 Matter Capacity 300 Sight Range 16 Terrain Scan Range 16 Terrain Scan Density 10 Evasion (%) 44 Recoil Reduction 1 Item Schematics ----------------- None Robot Schematics ------------------ None Fabricated ------------ Nothing Alien Tech Used ----------------- None Achievements -------------- None Challenges ------------ None Game ------ Seed InsulatedCouplerSplitter Manual? 0 Play Time 00:05:10 Cumulative 187.6 hours Start 2023.01.04 @ 21:32:09 End 2023.01.04 @ 21:35:58 Sessions 1 Manual Loads 0 Difficulty Rogue Special Mode None Game No. 262 Rogue 262 Adventurer 0 Explorer 0 Win Type - Total 5 Types 1/0/3/0/0/0/1/0/0 Lore% 71 Gallery% 83 Achievement% 64 Wizard Run 0 Options --------- ASCII 0 Keyboard 0 Movement Numpad Keybinds 0 Fullscreen 1 Font 18/SmallcapsGlow Map View 76x50 Tactical HUD 1 Map Filters NONE Filters NONE Steam 1 RUN: c49e4a77-616f-4bb6-a789-f03d8c81341a